fUST/lending_fUST_20250725
["ID","MTS","AMOUNT","RATE_DAILY","PERIOD"]
[374626848,1753385452942,-579.21,0.00021819,2]
[374626849,1753385452951,-504.21,0.00021819,2]
[374626850,1753385452963,-460.0,0.00021819,2]
[374626851,1753385452973,-766.2,0.00021819,2]
[374626852,1753385452985,-460.0,0.00021819,2]
[374626853,1753385452996,-556.18,0.00021819,2]
[374626854,1753385453006,-460.0,0.00021819,2]
[374626855,1753385453017,-962.62,0.00021819,2]
[374626856,1753385453028,-460.0,0.00021819,2]
[374626857,1753385453039,-460.0,0.00021819,2]
[374626858,1753385453048,-2148.38,0.00021819,2]
[374626859,1753385453058,-817.39,0.00021819,2]
[374626860,1753385453068,-460.0,0.00021819,2]
[374626861,1753385453077,-5357.72,0.00021819,2]
[374626862,1753385453087,-460.0,0.00021819,2]
[374626863,1753385453098,-754.21,0.00021819,2]
[374626864,1753385453107,-635.65,0.00021819,2]
[374626865,1753385453119,-460.0,0.00021819,2]
[374626866,1753385453130,-728.76,0.00021819,2]
[374626867,1753385453139,-151.0,0.00021819,2]
[374626868,1753385453149,-460.0,0.00021819,2]
[374626869,1753385453160,-460.0,0.00021819,2]
[374626870,1753385453169,-460.0,0.00021819,2]
[374626871,1753385453178,-1124.45,0.00021819,2]
[374626872,1753385453188,-618.23,0.00021819,2]
[374626873,1753385453198,-2445.06,0.00021819,2]
[374626874,1753385453208,-460.0,0.00021819,2]
[374626875,1753385453217,-4507.19,0.00021819,2]
[374626876,1753385453226,-1287.86,0.00021819,2]
[374626877,1753385453237,-2379.26,0.00021819,2]
[374626878,1753385453249,-460.0,0.00021819,2]
[374626879,1753385453260,-151.0,0.00021819,2]
[374626880,1753385453271,-713.28,0.00021819,2]
[374626881,1753385453282,-151.0,0.00021819,2]
[374626882,1753385453292,-460.0,0.00021819,2]
[374626883,1753385453302,-460.0,0.00021819,2]
[374626884,1753385453312,-2046.78,0.00021819,2]
[374626885,1753385453322,-151.0,0.00021819,2]
[374626886,1753385453331,-151.0,0.00021819,2]
[374626887,1753385453340,-1767.26,0.00021819,2]
[374626888,1753385453350,-1427.87,0.00021819,2]
[374626889,1753385453359,-1965.0,0.00021819,2]
[374626890,1753385453369,-970.59,0.00021819,2]
[374626891,1753385453379,-179.422101,0.00021819,2]
[374626892,1753385453389,-4088.1679559,0.00021822,2]
[374626893,1753385453399,-151.0,0.00021844,2]
[374626894,1753385453409,-151.0,0.00021844,2]
[374626895,1753385453419,-151.0,0.00021844,2]
[374626896,1753385453428,-500.0,0.00021844,2]
[374626897,1753385453438,-576.27187642,0.00021844,2]
[374626898,1753385453448,-475.93898974,0.00021854,2]
[374626899,1753385453457,-983.43247783,0.00021864,2]
[374626900,1753385453467,-360.0,0.00021865,2]
[374626901,1753385453477,-4239.43017027,0.00021877,2]
[374626902,1753385453487,-500.0,0.00021917,2]
[374626903,1753385453497,-500.0,0.00021917,2]
[374626904,1753385453508,-500.0,0.00021917,2]
[374626905,1753385453518,-500.0,0.00021917,2]
[374626906,1753385453531,-500.0,0.00021917,2]
[374626907,1753385453540,-500.0,0.00021917,2]
[374626908,1753385453549,-500.0,0.00021917,2]
[374626909,1753385453559,-500.0,0.00021917,2]
[374626910,1753385453568,-500.0,0.00021917,2]
[374626911,1753385453577,-150.0,0.00021918,2]
[374626912,1753385453587,-4396.28908657,0.00021932,2]
[374626913,1753385453597,-2798.30460564,0.00021969,6]
[374626914,1753385453606,-500.0,0.00021973,2]
[374626915,1753385453616,-500.0,0.00021973,2]
[374626916,1753385453626,-4558.95178277,0.00021987,2]
[374626917,1753385453636,-2000.0,0.0002199,2]
[374626918,1753385453646,-460.0,0.00021992,2]
[374626919,1753385453656,-687.48158231,0.00021993,2]
[374626920,1753385453667,-500.0,0.00021996,2]
[374626921,1753385453677,-3234.5,0.00022,7]
[374626922,1753385453686,-1384.63,0.00022,7]
[374626923,1753385453697,-151.0,0.00022,10]
[374626924,1753385453709,-166.67,0.00022,2]
[374626925,1753385453719,-1000.0,0.00022012,2]
[374626926,1753385453731,-4727.63299873,0.00022042,2]
[374626927,1753385453741,-289.879289,0.00022093,7]
[374626928,1753385453752,-289.879289,0.00022093,7]
[374626929,1753385453763,-151.0,0.00022093,7]
[374626930,1753385453773,-460.0,0.00022093,2]
[374626931,1753385453784,-713.76,0.00022093,2]
[374626932,1753385453793,-460.0,0.00022093,2]
[374626933,1753385453803,-460.0,0.00022093,2]
[374626934,1753385453813,-460.0,0.00022093,2]
[374626935,1753385453824,-460.0,0.00022093,2]
[374626936,1753385453833,-460.0,0.00022093,2]
[374626937,1753385453843,-905.35,0.00022093,2]
[374626938,1753385453853,-460.0,0.00022093,2]
[374626939,1753385453862,-151.0,0.00022093,7]
[374626940,1753385453952,-460.0,0.00022093,2]
[374626941,1753385453964,-460.0,0.00022093,2]
[374626942,1753385453974,-151.0,0.00022093,7]
[374626943,1753385453984,-460.0,0.00022093,2]
[374626944,1753385453994,-777.87,0.00022093,2]
[374626945,1753385454004,-460.0,0.00022093,2]
[374626946,1753385454013,-151.0,0.00022093,7]
[374626947,1753385454022,-460.0,0.00022093,2]
[374626948,1753385454032,-534.68,0.00022093,2]
[374626949,1753385454042,-460.0,0.00022093,2]
[374626950,1753385454051,-151.0,0.00022093,7]
[374626951,1753385454061,-254.472301,0.00022093,7]
[374626952,1753385454070,-151.0,0.00022093,7]
[374626953,1753385454079,-683.5,0.00022093,2]
[374626954,1753385454088,-254.472301,0.00022093,7]
[374626955,1753385454097,-460.0,0.00022093,2]
[374626956,1753385454107,-1715.33,0.00022093,2]
[374626957,1753385454118,-460.0,0.00022093,2]
[374626958,1753385454129,-460.0,0.00022093,2]
[374626959,1753385454139,-551.1,0.00022093,2]
[374626960,1753385454148,-783.45,0.00022093,2]
[374626961,1753385454159,-776.79,0.00022093,2]
[374626962,1753385454169,-1817.70868904,0.00022093,2]
[374626963,1753385454336,-747.03131096,0.00022093,2]
[374626964,1753385454346,-151.0,0.00022093,7]
[374626965,1753385454356,-463.65,0.00022093,2]
[374626966,1753385454365,-151.0,0.00022093,7]
[374626967,1753385454375,-151.0,0.00022093,7]
[374626968,1753385454385,-460.0,0.00022093,2]
[374626969,1753385454394,-460.0,0.00022093,2]
[374626970,1753385454403,-572.73,0.00022093,2]
[374626971,1753385454413,-1157.22,0.00022093,2]
[374626972,1753385454422,-646.9,0.00022093,2]
[374626973,1753385454432,-1765.12,0.00022093,2]
[374626974,1753385454443,-1892.27,0.00022093,2]
[374626975,1753385454453,-151.0,0.00022093,7]
[374626976,1753385454462,-620.12,0.00022093,2]
[374626977,1753385454471,-151.0,0.00022093,7]
[374626978,1753385454480,-151.0,0.00022093,7]
[374626979,1753385454489,-751.65,0.00022093,2]
[374626980,1753385454499,-460.0,0.00022093,2]
[374626981,1753385454508,-460.0,0.00022093,2]
[374626982,1753385454517,-915.11,0.00022093,2]
[374626983,1753385454527,-151.387848,0.00022093,7]
[374626984,1753385454538,-549.37,0.00022093,2]
[374626985,1753385454547,-582.72,0.00022093,2]
[374626986,1753385454557,-168.917636,0.00022093,7]
[374626987,1753385454566,-168.917636,0.00022093,7]
[374626988,1753385454575,-151.0,0.00022093,7]
[374626989,1753385454585,-460.0,0.00022093,2]
[374626990,1753385454594,-151.0,0.00022093,7]
[374626991,1753385454604,-460.0,0.00022093,2]
[374626992,1753385454614,-579.21,0.00022093,2]
[374626993,1753385454623,-504.21,0.00022093,2]
[374626994,1753385454633,-460.0,0.00022093,2]
[374626995,1753385454643,-151.0,0.00022093,7]
[374626996,1753385454652,-766.2,0.00022093,2]
[374626997,1753385454661,-460.0,0.00022093,2]
[374626998,1753385454671,-556.18,0.00022093,2]
[374626999,1753385454680,-962.62,0.00022093,2]
[374627000,1753385454690,-460.0,0.00022093,2]
[374627001,1753385454699,-294.22145135,0.00022093,2]
[374627002,1753385454708,-817.39,0.00022093,2]
[374627003,1753385454718,-339.697262,0.00022093,7]
[374627004,1753385454727,-151.0,0.00022093,7]
[374627005,1753385454736,-5357.72,0.00022093,2]
[374627006,1753385454746,-460.0,0.00022093,2]
[374627007,1753385454756,-2148.38,0.00022093,2]
[374627008,1753385454766,-460.0,0.00022093,2]
[374627009,1753385454775,-339.697262,0.00022093,7]
[374627010,1753385454786,-754.21,0.00022093,2]
[374627011,1753385454796,-635.65,0.00022093,2]
[374627012,1753385454805,-460.0,0.00022093,2]
[374627013,1753385454815,-728.76,0.00022093,2]
[374627014,1753385454824,-151.0,0.00022093,7]
[374627015,1753385454834,-460.0,0.00022093,2]
[374627016,1753385454844,-460.0,0.00022093,2]
[374627017,1753385454853,-257.46,0.00022093,2]
[374627018,1753385454863,-599.598256,0.00022093,7]
[374627019,1753385454872,-599.598256,0.00022093,7]
[374627020,1753385454882,-1124.45,0.00022093,2]
[374627021,1753385454892,-618.23,0.00022093,2]
[374627022,1753385454902,-500.0,0.00022093,2]
[374627023,1753385454911,-2445.06,0.00022093,2]
[374627024,1753385454922,-460.0,0.00022093,2]
[374627025,1753385454931,-4507.19,0.00022093,2]
[374627026,1753385454940,-1287.86,0.00022093,2]
[374627027,1753385454951,-2379.26,0.00022093,2]
[374627028,1753385454960,-460.0,0.00022093,2]
[374627029,1753385454970,-713.28,0.00022093,2]
[374627030,1753385454981,-460.0,0.00022093,2]
[374627031,1753385454993,-460.0,0.00022093,2]
[374627032,1753385455003,-2046.78,0.00022093,2]
[374627033,1753385455014,-1767.26,0.00022093,2]
[374627034,1753385455025,-1427.87,0.00022093,2]
[374627035,1753385455036,-1965.0,0.00022093,2]
[374627036,1753385455046,-970.59,0.00022093,2]
[374627037,1753385455056,-4902.55541968,0.00022097,2]
[374627038,1753385455066,-5083.94997021,0.00022152,2]
[374627039,1753385455078,-2798.30460564,0.00022176,6]
[374627040,1753385455089,-2316.39114688,0.00022207,2]
[374627041,1753385455099,-25000.0,0.0002226,2]
[374627042,1753385455108,-151.0,0.0002226,7]
[374627043,1753385455121,-151.0,0.0002226,7]
[374627044,1753385455131,-151.0,0.0002226,7]
[374627045,1753385455142,-151.0,0.0002226,7]
[374627046,1753385455151,-158.710275,0.0002226,7]
[374627047,1753385455161,-151.0,0.0002226,7]
[374627048,1753385455171,-151.0,0.0002226,7]
[374627049,1753385455180,-158.710275,0.0002226,7]
[374627050,1753385455188,-283.895004,0.0002226,7]
[374627051,1753385455198,-283.895004,0.0002226,7]
[374627052,1753385455207,-182.021769,0.0002226,7]
[374627053,1753385455217,-182.021769,0.0002226,7]
[374627054,1753385455227,-460.0,0.00022266,2]
[374627055,1753385455239,-151.0,0.000223,6]
[374627056,1753385455249,-160.0,0.00022314,7]
[374627057,1753385455260,-214.7213231,0.00022314,7]
[374627058,1753385455270,-12624.810388,0.00022314,7]
[374627059,1753385455283,-476.79463412,0.00022314,7]
[374627060,1753385455292,-151.0,0.00022314,7]
[374627061,1753385455302,-151.0,0.00022314,7]
[374627062,1753385455311,-151.0,0.00022314,7]
[374627063,1753385455320,-151.0,0.00022314,7]
[374627064,1753385455330,-2500.0,0.00022364,2]
[374627065,1753385455339,-460.0,0.00022367,2]
[374627066,1753385455348,-713.76,0.00022367,2]
[374627067,1753385455358,-460.0,0.00022367,2]
[374627068,1753385455367,-460.0,0.00022367,2]
[374627069,1753385455377,-460.0,0.00022367,2]
[374627070,1753385455387,-289.5940773,0.00022367,2]
[374627071,1753385455396,-460.0,0.00022367,2]
[374627072,1753385455405,-905.35,0.00022367,2]
[374627073,1753385455415,-460.0,0.00022367,2]
[374627074,1753385455508,-460.0,0.00022367,2]
[374627075,1753385455519,-460.0,0.00022367,2]
[374627076,1753385455529,-460.0,0.00022367,2]
[374627077,1753385455543,-777.87,0.00022367,2]
[374627078,1753385455553,-460.0,0.00022367,2]
[374627079,1753385455562,-460.0,0.00022367,2]
[374627080,1753385455572,-534.68,0.00022367,2]
[374627081,1753385455581,-460.0,0.00022367,2]
[374627082,1753385455590,-683.5,0.00022367,2]
[374627083,1753385455600,-460.0,0.00022367,2]
[374627084,1753385455610,-1715.33,0.00022367,2]
[374627085,1753385455619,-460.0,0.00022367,2]
[374627086,1753385455629,-460.0,0.00022367,2]
[374627087,1753385455639,-551.1,0.00022367,2]
[374627088,1753385455648,-783.45,0.00022367,2]
[374627089,1753385455657,-776.79,0.00022367,2]
[374627090,1753385455667,-2564.74,0.00022367,2]
[374627091,1753385455676,-463.65,0.00022367,2]
[374627092,1753385455685,-460.0,0.00022367,2]
[374627093,1753385455695,-460.0,0.00022367,2]
[374627094,1753385455705,-572.73,0.00022367,2]
[374627095,1753385455714,-1157.22,0.00022367,2]
[374627096,1753385455724,-646.9,0.00022367,2]
[374627097,1753385455734,-1765.12,0.00022367,2]
[374627098,1753385455743,-1892.27,0.00022367,2]
[374627099,1753385455752,-620.12,0.00022367,2]
[374627100,1753385455761,-751.65,0.00022367,2]
[374627101,1753385455771,-460.0,0.00022367,2]
[374627102,1753385455780,-460.0,0.00022367,2]
[374627103,1753385455793,-915.11,0.00022367,2]
[374627104,1753385455803,-582.72,0.00022367,2]
[374627105,1753385455812,-460.0,0.00022367,2]
[374627106,1753385455821,-549.37,0.00022367,2]
[374627107,1753385455831,-579.21,0.00022367,2]
[374627108,1753385455840,-504.21,0.00022367,2]
[374627109,1753385455850,-460.0,0.00022367,2]
[374627110,1753385455860,-766.2,0.00022367,2]
[374627111,1753385455870,-460.0,0.00022367,2]
[374627112,1753385455880,-556.18,0.00022367,2]
[374627113,1753385455890,-962.62,0.00022367,2]
[374627114,1753385455900,-460.0,0.00022367,2]
[374627115,1753385455909,-817.39,0.00022367,2]
[374627116,1753385455919,-5357.72,0.00022367,2]
[374627117,1753385455929,-460.0,0.00022367,2]
[374627118,1753385455939,-2148.38,0.00022367,2]
[374627119,1753385455949,-460.0,0.00022367,2]
[374627120,1753385455958,-635.65,0.00022367,2]
[374627121,1753385455967,-754.21,0.00022367,2]
[374627122,1753385455977,-460.0,0.00022367,2]
[374627123,1753385455987,-728.76,0.00022367,2]
[374627124,1753385455996,-460.0,0.00022367,2]
[374627125,1753385456005,-171.27635903,0.00022367,2]
[374627126,1753385456015,-1124.45,0.00022367,2]
[374627127,1753385456025,-618.23,0.00022367,2]
[374627128,1753385456035,-500.0,0.00022367,2]
[374627129,1753385456045,-2445.06,0.00022367,2]
[374627130,1753385456055,-460.0,0.00022367,2]
[374627131,1753385456065,-4507.19,0.00022367,2]
[374627132,1753385456075,-1287.86,0.00022367,2]
[374627133,1753385456084,-2379.26,0.00022367,2]
[374627134,1753385456093,-216.012377,0.00022367,2]
[374627135,1753385456103,-713.28,0.00022367,2]
[374627136,1753385456112,-460.0,0.00022367,2]
[374627137,1753385456125,-460.0,0.00022367,2]
[374627138,1753385456135,-2046.78,0.00022367,2]
[374627139,1753385456144,-1767.26,0.00022367,2]
[374627140,1753385456154,-1427.87,0.00022367,2]
[374627141,1753385456165,-1965.0,0.00022367,2]
[374627142,1753385456175,-970.59,0.00022367,2]
[374627143,1753385456184,-2798.30460564,0.00022383,7]
[374627144,1753385456195,-429.7456075,0.00022384,2]
[374627145,1753385456204,-429.7456075,0.00022384,2]
[374627146,1753385456214,-289.879289,0.0002239,7]
[374627147,1753385456223,-289.879289,0.0002239,7]
[374627148,1753385456232,-1000.0,0.00022392,2]
[374627149,1753385456242,-460.0,0.00022413,2]
[374627150,1753385456252,-1625.61,0.00022465,2]
[374627151,1753385456261,-231.76193867,0.00022466,2]
[374627152,1753385456270,-289.879289,0.00022473,7]
[374627153,1753385456280,-289.879289,0.00022473,7]
[374627154,1753385456290,-307569.43071475,0.0002249,7]
[374627155,1753385456428,-460.0,0.00021545,2]
[374627156,1753385456438,-151.0,0.00021712,2]
[374627157,1753385456447,-151.0,0.00021712,2]
[374627158,1753385456456,-460.0,0.00021819,2]
[374627159,1753385456466,-114.16834513,0.00022093,2]
[374627160,1753385456483,-345.83165487,0.00022093,2]
[374627161,1753385456492,-460.0,0.00022367,2]
[374627162,1753385456502,-11950.06588209,0.0002249,7]
[374627163,1753385456514,-2810.53648626,0.0002249,7]
[374627164,1753385456526,-23391.05334003,0.0002249,7]
[374627165,1753385456539,-13033.84502107,0.0002249,7]
[374627166,1753385456549,-151.0,0.0002249,7]
[374627167,1753385456558,-151.733625,0.0002249,7]
[374627168,1753385456568,-151.0,0.0002249,7]
[374627169,1753385456577,-151.0,0.0002249,7]
[374627170,1753385456587,-179.422101,0.0002249,7]
[374627171,1753385456596,-166.67,0.000225,2]
[374627172,1753385456605,-1000.0,0.00022521,2]
[374627173,1753385456615,-392.78714662,0.00022521,2]
[374627174,1753385456624,-2612.59734139,0.00022538,2]
[374627175,1753385456634,-460.0,0.0002254,2]
[374627176,1753385456643,-502.5407948,0.00022544,2]
[374627177,1753385456653,-1000.0,0.0002256,2]
[374627178,1753385456662,-2798.30460564,0.0002259,7]
[374627179,1753385456672,-283.091723,0.00022627,7]
[374627180,1753385456682,-151.0,0.00022627,7]
[374627181,1753385456691,-167.069805,0.00022627,7]
[374627182,1753385456700,-155.43954,0.00022627,7]
[374627183,1753385456710,-155.43954,0.00022627,7]
[374627184,1753385456719,-151.0,0.00022627,7]
[374627185,1753385456728,-289.879289,0.00022641,7]
[374627186,1753385456738,-289.879289,0.00022641,7]
[374627187,1753385456747,-151.0,0.00022641,7]
[374627188,1753385456756,-151.0,0.00022641,7]
[374627189,1753385456765,-151.0,0.00022641,7]
[374627190,1753385456775,-151.0,0.00022641,7]
[374627191,1753385456785,-460.0,0.00022641,2]
[374627192,1753385456794,-151.0,0.00022641,7]
[374627193,1753385456803,-152.022095,0.00022641,2]
[374627194,1753385456812,-151.0,0.00022641,7]
[374627195,1753385456822,-151.0,0.00022641,7]
[374627196,1753385456831,-151.0,0.00022641,7]
[374627197,1753385456840,-151.0,0.00022641,7]
[374627198,1753385456849,-151.0,0.00022641,7]
[374627199,1753385456858,-151.0,0.00022641,7]
[374627200,1753385456867,-23.7821947,0.00022641,2]
[374627201,1753385457083,-460.0,0.00019627,2]
[374627202,1753385457093,-460.0,0.00019901,2]
[374627203,1753385457103,-1261.5266109,0.00019901,2]
[374627204,1753385457115,-2205.7533891,0.00019901,2]
[374627205,1753385457129,-3467.28,0.00020175,2]
[374627206,1753385457139,-3467.28,0.00020449,2]
[374627207,1753385457148,-3467.28,0.00020723,2]
[374627208,1753385457158,-179.422101,0.00021819,2]
[374627209,1753385457167,-429.7456075,0.00022384,2]
[374627210,1753385457177,-179.422101,0.0002249,7]
[374627211,1753385457186,-689.9778053,0.00022641,2]
[374627212,1753385457196,-460.0,0.00022641,2]
[374627213,1753385457206,-481.3761383,0.00022641,2]
[374627214,1753385457215,-460.0,0.00022641,2]
[374627215,1753385457225,-460.0,0.00022641,2]
[374627216,1753385457234,-905.35,0.00022641,2]
[374627217,1753385457244,-460.0,0.00022641,2]
[374627218,1753385457253,-460.0,0.00022641,2]
[374627219,1753385457262,-460.0,0.00022641,2]
[374627220,1753385457272,-460.0,0.00022641,2]
[374627221,1753385457282,-777.87,0.00022641,2]
[374627222,1753385457291,-460.0,0.00022641,2]
[374627223,1753385457301,-534.68,0.00022641,2]
[374627224,1753385457311,-460.0,0.00022641,2]
[374627225,1753385457320,-683.5,0.00022641,2]
[374627226,1753385457329,-293.72517066,0.00022641,2]
[374627227,1753385457339,-1715.33,0.00022641,2]
[374627228,1753385457348,-332.40075587,0.00022641,2]
[374627229,1753385457358,-460.0,0.00022641,2]
[374627230,1753385457368,-551.1,0.00022641,2]
[374627231,1753385457378,-776.79,0.00022641,2]
[374627232,1753385457387,-783.45,0.00022641,2]
[374627233,1753385457398,-2564.74,0.00022641,2]
[374627234,1753385457408,-463.65,0.00022641,2]
[374627235,1753385457418,-460.0,0.00022641,2]
[374627236,1753385457428,-460.0,0.00022641,2]
[374627237,1753385457438,-572.73,0.00022641,2]
[374627238,1753385457447,-1157.22,0.00022641,2]
[374627239,1753385457457,-646.9,0.00022641,2]
[374627240,1753385457467,-1765.12,0.00022641,2]
[374627241,1753385457476,-1892.27,0.00022641,2]
[374627242,1753385457488,-620.12,0.00022641,2]
[374627243,1753385457501,-751.65,0.00022641,2]
[374627244,1753385457511,-460.0,0.00022641,2]
[374627245,1753385457521,-460.0,0.00022641,2]
[374627246,1753385457531,-915.11,0.00022641,2]
[374627247,1753385457542,-582.72,0.00022641,2]
[374627248,1753385457551,-460.0,0.00022641,2]
[374627249,1753385457561,-549.37,0.00022641,2]
[374627250,1753385457570,-579.21,0.00022641,2]
[374627251,1753385457579,-504.21,0.00022641,2]
[374627252,1753385457589,-460.0,0.00022641,2]
[374627253,1753385457598,-766.2,0.00022641,2]
[374627254,1753385457607,-460.0,0.00022641,2]
[374627255,1753385457616,-123.78713981,0.00022641,2]
[374627256,1753385457792,-422.748628,0.00019627,2]
[374627257,1753385457803,-37.251372,0.00019627,2]
[374627258,1753385457813,-3467.28,0.00020997,2]
[374627259,1753385457822,-3467.28,0.00021271,2]
[374627260,1753385457832,-3467.28,0.00021545,2]
[374627261,1753385457842,-3467.28,0.00021819,2]
[374627262,1753385457851,-3467.28,0.00022093,2]
[374627263,1753385457860,-3467.28,0.00022367,2]
[374627264,1753385457869,-432.39286019,0.00022641,2]
[374627265,1753385457879,-962.62,0.00022641,2]
[374627266,1753385457888,-460.0,0.00022641,2]
[374627267,1753385457898,-817.39,0.00022641,2]
[374627268,1753385457907,-5357.72,0.00022641,2]
[374627269,1753385457916,-2148.38,0.00022641,2]
[374627270,1753385457926,-460.0,0.00022641,2]
[374627271,1753385457935,-635.65,0.00022641,2]
[374627272,1753385457945,-754.21,0.00022641,2]
[374627273,1753385457955,-460.0,0.00022641,2]
[374627274,1753385457965,-728.76,0.00022641,2]
[374627275,1753385457974,-460.0,0.00022641,2]
[374627276,1753385457984,-1124.45,0.00022641,2]
[374627277,1753385457993,-618.23,0.00022641,2]
[374627278,1753385458003,-500.0,0.00022641,2]
[374627279,1753385458012,-2445.06,0.00022641,2]
[374627280,1753385458021,-460.0,0.00022641,2]
[374627281,1753385458030,-4507.19,0.00022641,2]
[374627282,1753385458040,-1287.86,0.00022641,2]
[374627283,1753385458050,-2379.26,0.00022641,2]
[374627284,1753385458059,-713.28,0.00022641,2]
[374627285,1753385458068,-460.0,0.00022641,2]
[374627286,1753385458077,-460.0,0.00022641,2]
[374627287,1753385458087,-2046.78,0.00022641,2]
[374627288,1753385458096,-1767.26,0.00022641,2]
[374627289,1753385458106,-1427.87,0.00022641,2]
[374627290,1753385458116,-1965.0,0.00022641,2]
[374627291,1753385458129,-970.59,0.00022641,2]
[374627292,1753385458139,-460.0,0.00022641,2]
[374627293,1753385458149,-3467.28,0.00022641,2]
[374627294,1753385458159,-500.0,0.00022673,2]
[374627295,1753385458168,-265.31149077,0.00022673,2]
[374627296,1753385458177,-500.0,0.00022673,2]
[374627297,1753385458187,-526.18168603,0.00022673,2]
[374627298,1753385458197,-500.0,0.00022673,2]
[374627299,1753385458206,-2125.09168061,0.00022708,2]
[374627300,1753385458215,-2798.30460564,0.00022797,7]
[374627301,1753385458225,-25000.0,0.00022808,2]
[374627302,1753385458235,-151.0,0.00022808,7]
[374627303,1753385458244,-151.0,0.00022808,7]
[374627304,1753385458254,-151.0,0.00022808,7]
[374627305,1753385458264,-460.0,0.00022814,2]
[374627306,1753385458272,-687.48158231,0.00022815,2]
[374627307,1753385458283,-3000.0,0.00022912,2]
[374627308,1753385458292,-151.0,0.00022915,7]
[374627309,1753385458301,-151.0,0.00022915,7]
[374627310,1753385458312,-460.0,0.00022915,2]
[374627311,1753385458322,-713.76,0.00022915,2]
[374627312,1753385458332,-460.0,0.00022915,2]
[374627313,1753385458342,-475.9588602,0.00022915,2]
[374627314,1753385458352,-460.0,0.00022915,2]
[374627315,1753385458361,-905.35,0.00022915,2]
[374627316,1753385458371,-460.0,0.00022915,2]
[374627317,1753385458380,-460.0,0.00022915,2]
[374627318,1753385458390,-460.0,0.00022915,2]
[374627319,1753385458399,-460.0,0.00022915,2]
[374627320,1753385458408,-777.87,0.00022915,2]
[374627321,1753385458417,-313.96325437,0.00022915,2]
[374627322,1753385458500,-534.68,0.00022915,2]
[374627323,1753385458509,-260.80716115,0.00022915,2]
[374627324,1753385458519,-683.5,0.00022915,2]
[374627325,1753385458528,-460.0,0.00022915,2]
[374627326,1753385458539,-551.1,0.00022915,2]
[374627327,1753385458549,-776.79,0.00022915,2]
[374627328,1753385458559,-783.45,0.00022915,2]
[374627329,1753385458568,-151.0,0.00022915,7]
[374627330,1753385458578,-2564.74,0.00022915,2]
[374627331,1753385458587,-463.65,0.00022915,2]
[374627332,1753385458597,-151.0,0.00022915,7]
[374627333,1753385458606,-151.0,0.00022915,7]
[374627334,1753385458616,-460.0,0.00022915,2]
[374627335,1753385458625,-460.0,0.00022915,2]
[374627336,1753385458634,-572.73,0.00022915,2]
[374627337,1753385458644,-1157.22,0.00022915,2]
[374627338,1753385458653,-646.9,0.00022915,2]
[374627339,1753385458663,-1765.12,0.00022915,2]
[374627340,1753385458672,-1892.27,0.00022915,2]
[374627341,1753385458682,-620.12,0.00022915,2]
[374627342,1753385458691,-151.0,0.00022915,7]
[374627343,1753385458700,-151.0,0.00022915,7]
[374627344,1753385458710,-751.65,0.00022915,2]
[374627345,1753385458719,-460.0,0.00022915,2]
[374627346,1753385458728,-460.0,0.00022915,2]
[374627347,1753385458738,-915.11,0.00022915,2]